bitfinex-derivatives/quotes_SOLF0:USTF0_20250415
["timestamp","ask_amount","ask_price","bid_price","bid_amount"]
[1744711092616,2.05523414,133.38,133.34,26.98]
[1744711093116,7.4996,133.35,133.34,26.98]
[1744711094316,7.55373063,133.36,133.34,34.4802]
[1744711094515,7.55373063,133.36,133.34,26.98]
[1744711094816,7.4996,133.35,133.34,26.98]
[1744711095213,0.05463063,133.36,133.33,0.05149549]
[1744711095607,0.05463063,133.36,133.35,7.16432922]
[1744711095811,3.414e-05,133.38,133.35,7.16432922]
[1744711096006,3.414e-05,133.38,133.34,26.98]
[1744711096715,3.414e-05,133.38,133.35,7.4992]
[1744711096918,0.05265044,133.37,133.34,26.98]
[1744711097112,0.05265044,133.37,133.35,4.5830544]
[1744711097415,0.05265044,133.37,133.35,12.0822544]
[1744711098416,0.05265044,133.37,133.36,7.4991]
[1744711100017,0.05265044,133.37,133.36,12.0821544]
[1744711102318,3.414e-05,133.38,133.37,7.4985]
[1744711102519,3.414e-05,133.38,133.37,34.4585]
[1744711106220,3.414e-05,133.38,133.37,39.0415544]
[1744711111227,3.414e-05,133.38,133.37,34.4585]
[1744711111423,3.414e-05,133.38,133.37,39.0415544]
[1744711112024,4.2626431,133.39,133.38,7.4979]
[1744711112227,4.2626431,133.39,133.38,12.0809544]
[1744711112431,4.31e-05,133.39,133.38,12.0809544]
[1744711122637,1.686e-05,133.4,133.39,7.4974]
[1744711125839,1.686e-05,133.4,133.39,12.0804544]
[1744711126034,7.555e-05,133.41,133.4,7.4968]
[1744711126235,3.42379051,133.42,133.4,31.7030544]
[1744711126236,6.606e-05,133.42,133.4,31.7030544]
[1744711126936,6.606e-05,133.42,133.41,7.4962]
[1744711127638,6.606e-05,133.42,133.41,12.0792544]
[1744711129238,3.58480488,133.44,133.41,12.0792544]
[1744711129239,3.58480488,133.44,133.41,4.5830544]
[1744711129539,3.58480488,133.44,133.43,4.5830544]
[1744711129729,3.58480488,133.44,133.43,39.1981544]
[1744711130437,2.98e-06,133.45,133.4,898.5878371]
[1744711130634,2.98e-06,133.45,133.42,4.5830544]
[1744711130834,2.98e-06,133.45,133.44,7.4946]
[1744711131236,2.98e-06,133.45,133.42,4.5830544]
[1744711131435,2.98e-06,133.45,133.42,4.64077849]
[1744711131836,2.98e-06,133.45,133.43,7.4948]
[1744711132740,7.49410298,133.45,133.43,7.4948]
[1744711133340,2.98e-06,133.45,133.43,7.4948]
[1744711134240,2.98e-06,133.45,133.44,7.4946]
[1744711135241,7.49400298,133.45,133.43,7.4948]
[1744711135436,2.98e-06,133.45,133.42,4.64077849]
[1744711135838,2.98e-06,133.45,133.43,7.4946]
[1744711136138,2.98e-06,133.45,133.42,4.64077849]
[1744711137644,2.98e-06,133.45,133.44,7.4946]
[1744711137842,2.98e-06,133.45,133.44,34.6146]
[1744711140141,7.49400298,133.45,133.44,27.12]
[1744711140337,2.98e-06,133.45,133.42,0.05772409]
[1744711140546,4.5830544,133.43,133.36,1.30407899]
[1744711140739,4.5830544,133.39,133.35,62.07961498]
[1744711140939,4.5830544,133.41,133.36,4.5830544]
[1744711141245,2.0215,133.42,133.39,12.0798544]
[1744711141445,2.0215,133.42,133.39,4.5830544]
[1744711141846,2.07698821,133.42,133.39,4.63962438]
[1744711142046,2.07698821,133.42,133.4,7.4965]
[1744711142949,2.07698821,133.42,133.39,12.13682438]
[1744711143143,2.07698821,133.42,133.39,7.55376998]
[1744711143949,9.57288821,133.42,133.39,7.55376998]
[1744711144250,2.07698821,133.42,133.39,7.55376998]
[1744711144445,2.07698821,133.42,133.39,12.13682438]
[1744711144646,0.05548821,133.42,133.39,4.63962438]
[1744711144846,0.05548821,133.42,133.4,4.5830544]
[1744711145043,0.05548821,133.42,133.41,12.0792544]
[1744711145246,0.05548821,133.42,133.41,39.1992544]
[1744711155652,8.821e-05,133.42,133.41,39.1992544]
[1744711166565,14.9745,133.58,133.41,398.2030544]
[1744711166764,4.5830544,133.53,133.49,4.5830544]
[1744711167061,2.1036,133.52,133.48,31.7030544]
[1744711167260,8.7932544,133.52,133.48,27.12]
[1744711167665,0.04736903,133.51,133.49,7.53931039]
[1744711168363,7.53826903,133.51,133.49,7.53931039]
[1744711168566,7.53826903,133.51,133.49,0.04781039]
[1744711169163,7.53826903,133.51,133.49,7.53941039]
[1744711169766,0.04736903,133.51,133.49,7.53941039]
[1744711170866,7.53806903,133.51,133.49,7.53941039]
[1744711175172,0.04736903,133.51,133.49,7.53941039]
[1744711175374,0.04736903,133.51,133.5,7.4912]
[1744711175574,0.04736903,133.51,133.49,0.04781039]
[1744711175777,0.04736903,133.51,133.49,7.53921039]
[1744711177177,7.53806903,133.51,133.49,7.53921039]
[1744711177478,0.04736903,133.51,133.49,7.53921039]
[1744711178076,0.04736903,133.51,133.5,7.4912]
[1744711183780,0.04736903,133.51,133.49,7.53911039]
[1744711183979,4.5830544,133.5,133.44,4.5830544]
[1744711184280,4.5830544,133.48,133.44,26.92]
[1744711184479,12.0758544,133.48,133.45,7.4936]
[1744711184681,4.5830544,133.47,133.45,7.4936]
[1744711185082,0.05767515,133.47,133.46,7.4934]
[1744711185584,0.05767515,133.47,133.46,12.0764544]
[1744711187581,4.2102,133.52,133.5,7.4908]
[1744711188483,4.25969521,133.52,133.5,7.5451866]
[1744711188782,11.74999521,133.52,133.5,7.5451866]
[1744711189682,9.64339521,133.52,133.5,7.5451866]
[1744711191081,7.4906,133.51,133.5,0.0543866]
[1744711191384,2.15309521,133.52,133.5,0.0543866]
[1744711192083,9.64349521,133.52,133.5,0.0543866]
[1744711192685,9.64349521,133.52,133.5,7.5455866]
[1744711192986,7.53989521,133.52,133.5,0.0543866]
[1744711193386,12.0736544,133.51,133.5,0.0543866]
[1744711194578,7.4906,133.51,133.5,0.0543866]
[1744711195686,12.12294961,133.52,133.5,0.0543866]
[1744711196781,12.12294961,133.52,133.5,7.5455866]
[1744711197087,12.12294961,133.52,133.5,0.0543866]
[1744711197484,4.63254961,133.52,133.5,0.0543866]
[1744711197687,0.04949521,133.52,133.5,0.0543866]
[1744711197890,7.4906,133.51,133.5,0.0543866]
[1744711199590,4.63254961,133.52,133.5,0.0543866]
[1744711200090,7.4906,133.51,133.5,0.0543866]
[1744711200290,4.5830544,133.51,133.46,26.92]
[1744711200483,4.5830544,133.48,133.44,4.5830544]
[1744711200688,7.492,133.49,133.44,31.5030544]
[1744711200887,6.7001544,133.5,133.44,31.5030544]
[1744711201089,1.9942,133.51,133.46,4.5830544]
[1744711201287,12.0733544,133.52,133.49,7.4915]
[1744711201487,0.04772763,133.5,133.48,4.5830544]
[1744711201683,12.12238203,133.5,133.47,34.46493799]
[1744711201991,4.5830544,133.49,133.47,26.97233799]
[1744711202391,7.4923,133.48,133.47,0.05233799]
[1744711202593,12.0753544,133.48,133.47,0.05233799]
[1744711204389,4.5830544,133.48,133.47,0.05233799]
[1744711204690,16.3316544,133.49,133.47,0.05233799]
[1744711205190,12.0750544,133.49,133.47,0.05233799]
[1744711205990,4.5830544,133.49,133.47,7.54483799]
[1744711206193,6.62498203,133.5,133.47,7.54483799]
[1744711206387,6.62498203,133.5,133.47,0.05233799]
[1744711206686,7.4923,133.48,133.47,0.05233799]
[1744711207790,12.0753544,133.48,133.47,0.05233799]
[1744711209090,4.5830544,133.48,133.42,26.92]
[1744711209394,4.5830544,133.43,133.38,40.24295814]
[1744711209589,4.5830544,133.41,133.38,35.65990374]
[1744711209788,4.5830544,133.39,133.36,34.95961498]
[1744711209994,4.5830544,133.38,133.36,34.95961498]
[1744711210195,4.63588594,133.39,133.36,35.00830728]
[1744711210594,7.55053154,133.39,133.36,35.00830728]
[1744711210897,0.05283154,133.39,133.36,39.59136168]
[1744711211188,7.4983,133.38,133.36,35.00830728]
[1744711211393,4.63588594,133.39,133.36,35.00830728]
[1744711211589,7.55043154,133.39,133.36,35.00830728]
[1744711211791,0.05283154,133.39,133.36,39.59136168]
[1744711211987,0.05283154,133.39,133.37,4.5830544]
[1744711212192,0.05283154,133.39,133.38,12.0809544]
[1744711213590,4.5830544,133.44,133.38,31.7030544]
[1744711213791,7.4951,133.43,133.4,4.5830544]
[1744711214195,7.4946,133.44,133.41,4.5830544]
[1744711214492,7.4946,133.44,133.41,31.7030544]
[1744711214698,7.54396393,133.44,133.41,39.25393703]
[1744711215096,4.5830544,133.43,133.41,27.17488263]
[1744711215493,4.5830544,133.43,133.41,0.05488263]
[1744711215696,4.5830544,133.42,133.36,4.5830544]
[1744711215893,4.5830544,133.39,133.35,31.7030544]
[1744711216089,4.5830544,133.41,133.37,7.4984]
[1744711216598,7.4971,133.4,133.37,7.4984]
[1744711216896,7.55441426,133.4,133.37,12.13649205]
[1744711217194,0.05731426,133.4,133.37,4.63809205]
[1744711217797,0.05731426,133.4,133.37,0.05503765]
[1744711218096,0.05731426,133.4,133.39,12.0804544]
[1744711220592,6.5188544,133.46,133.39,4.5830544]
[1744711220593,1.9358,133.46,133.39,4.5830544]
[1744711220794,7.4922,133.49,133.45,4.5830544]
[1744711220994,7.4922,133.49,133.47,4.5830544]
[1744711221298,7.4922,133.49,133.46,7.4931]
[1744711221799,7.4924,133.48,133.46,0.04853715]
[1744711222299,0.05549325,133.49,133.46,0.04853715]
[1744711222698,0.05549325,133.49,133.46,27.16853715]
[1744711223099,0.05549325,133.49,133.47,7.4926]
[1744711223399,0.05549325,133.49,133.46,27.16853715]
[1744711223599,0.05549325,133.49,133.47,7.4929]
[1744711223790,0.05549325,133.49,133.46,27.16853715]
[1744711223991,0.05549325,133.49,133.48,7.4923]
[1744711227398,31.1349,133.56,133.5,7.4908]
[1744711227596,31.1349,133.56,133.5,34.6108]
[1744711227897,7.4894,133.54,133.5,34.6108]
[1744711228101,31.1349,133.56,133.5,34.6108]
[1744711228300,31.1349,133.56,133.5,27.12]
[1744711228498,7.14945757,133.55,133.52,0.05396027]
[1744711228701,0.04896563,133.54,133.52,0.05396027]
[1744711228903,7.4895,133.53,133.52,0.05396027]
[1744711231905,7.4906,133.51,133.5,27.12]
[1744711232101,0.04896563,133.54,133.47,27.12]
[1744711232301,7.14945757,133.55,133.47,27.12]
[1744711232501,7.14945757,133.55,133.47,34.6125]
[1744711232902,0.05107754,133.52,133.5,0.05469126]
[1744711233304,7.4906,133.51,133.5,0.05469126]
[1744711234202,0.05107754,133.52,133.5,0.05469126]
[1744711234409,0.05107754,133.52,133.5,27.17469126]
[1744711234706,7.4906,133.51,133.5,0.05469126]
[1744711234908,0.05107754,133.52,133.47,27.12]
[1744711235104,2.04807754,133.52,133.47,27.12]
[1744711235304,7.14945757,133.51,133.45,539.44]
[1744711235509,7.14945757,133.51,133.44,27.12]
[1744711235703,2.0306,133.5,133.44,27.12]
[1744711236104,0.05455897,133.48,133.46,0.05510914]
[1744711236506,7.14945757,133.47,133.4,7.4966]
[1744711236710,7.14945757,133.47,133.4,27.12]
[1744711236906,34.26945757,133.47,133.4,27.12]
[1744711237207,7.4958,133.42,133.4,27.12]
[1744711237599,0.05216432,133.42,133.4,27.16751408]
[1744711238002,27.12,133.47,133.41,7.14945757]
[1744711238315,7.4937,133.46,133.43,7.495]
[1744711238513,7.4937,133.46,133.41,7.14945757]
[1744711238814,7.4941,133.45,133.42,7.4953]
[1744711239016,7.54471253,133.45,133.42,7.54283516]
[1744711239413,0.05061253,133.45,133.44,7.4946]
[1744711240511,9.14645757,133.52,133.43,34.26945757]
[1744711240717,1.997,133.52,133.45,7.14945757]
[1744711241017,7.4916,133.5,133.46,27.12]
[1744711241217,7.4916,133.5,133.47,7.4928]
[1744711241516,0.04996257,133.5,133.47,7.20499887]
[1744711242015,7.54116257,133.5,133.47,7.20499887]
[1744711242218,7.54116257,133.5,133.47,7.5481413]
[1744711242618,0.04996257,133.5,133.47,0.0555413]
[1744711243319,7.54146257,133.5,133.47,7.5483413]
[1744711247624,0.04996257,133.5,133.47,7.20499887]
[1744711248324,0.04996257,133.5,133.48,7.4923]
[1744711251829,0.04996257,133.5,133.49,7.4917]
[1744711252124,27.34,133.6,133.47,0.0555413]
[1744711252331,40.65855757,133.6,133.51,7.4901]
[1744711252624,40.65855757,133.6,133.51,36.08945757]
[1744711252832,40.65855757,133.6,133.51,43.57975757]
[1744711253021,40.65855757,133.6,133.51,36.08945757]
[1744711253223,0.05657932,133.57,133.54,7.19978487]
[1744711253423,7.14945757,133.63,133.55,28.94]
[1744711253628,0.04771343,133.57,133.55,28.94]
[1744711253932,7.4865,133.59,133.55,36.4281]
[1744711254123,0.04860676,133.57,133.55,28.9963194]
[1744711254429,0.04941666,133.57,133.55,36.4845194]
[1744711255427,0.04941666,133.57,133.55,28.9963194]
[1744711255933,7.53671666,133.57,133.55,28.9963194]
[1744711256227,0.04941666,133.57,133.55,28.9963194]
[1744711257224,7.53691666,133.57,133.55,28.9963194]
[1744711257430,0.04941666,133.57,133.55,28.9963194]
[1744711257830,0.04941666,133.57,133.55,36.4844194]
[1744711258232,0.04941666,133.57,133.56,7.14945757]
[1744711258427,7.4858,133.6,133.56,14.63725757]
[1744711258626,28.94,133.62,133.57,7.14945757]
[1744711258833,7.4864,133.59,133.56,7.14945757]
[1744711259530,7.4864,133.59,133.56,14.63725757]
[1744711259724,7.4867,133.58,133.56,7.20058825]
[1744711260231,7.4867,133.58,133.56,0.05113068]
[1744711260431,7.4873,133.57,133.56,0.05113068]
[1744711260628,0.04840787,133.59,133.56,0.05113068]
[1744711260830,7.487,133.58,133.56,0.05113068]
[1744711261032,0.04840787,133.59,133.56,7.20058825]
[1744711261231,0.04840787,133.59,133.56,43.60798825]
[1744711261432,0.04840787,133.59,133.56,36.12058825]
[1744711261631,0.04840787,133.59,133.56,28.97113068]
[1744711261936,0.04840787,133.59,133.56,0.05113068]
[1744711262335,7.4873,133.57,133.56,0.05113068]
[1744711262632,0.04840787,133.59,133.56,7.20058825]
[1744711263033,0.04840787,133.59,133.57,28.92]
[1744711263332,0.04840787,133.59,133.58,7.14945757]
[1744711263636,7.484,133.63,133.59,7.486]
[1744711263933,6.0038,133.65,133.6,7.14945757]
[1744711264135,7.4849,133.62,133.6,7.14945757]
[1744711264336,6.0038,133.65,133.6,7.14945757]
[1744711264536,6.0038,133.65,133.58,7.14945757]
[1744711264733,6.0038,133.65,133.6,0.05690948]
[1744711264937,0.02638608,133.63,133.6,0.05690948]
[1744711265334,7.485,133.61,133.6,0.05690948]
[1744711269236,7.4878,133.57,133.53,33.175]
[1744711269436,7.4878,133.57,133.53,31.0447]
[1744711269633,6.0038,133.65,133.54,7.14945757]
[1744711269836,7.4836,133.64,133.6,7.14945757]
[1744711270342,0.05615081,133.63,133.61,0.04789755]
[1744711270741,7.54005081,133.63,133.61,0.04789755]
[1744711270938,0.05615081,133.63,133.61,0.04789755]
[1744711273745,0.05615081,133.63,133.62,7.4845]
[1744711274248,0.05615081,133.63,133.61,7.53249755]
[1744711275848,7.54005081,133.63,133.61,0.04789755]
[1744711276438,0.05615081,133.63,133.61,0.04789755]
[1744711277551,7.54015081,133.63,133.61,0.04789755]
[1744711278447,0.05615081,133.63,133.61,7.53289755]
[1744711279859,0.05615081,133.63,133.62,7.4845]
[1744711280449,0.05615081,133.63,133.62,43.55395757]
[1744711281654,7.4819,133.67,133.64,7.4829]
[1744711282255,7.4819,133.67,133.65,7.4827]
[1744711282457,7.4819,133.67,133.62,36.06945757]
[1744711282656,0.02714475,133.66,133.63,0.0485142]
[1744711282858,0.02714475,133.66,133.64,7.483]
[1744711283659,0.02714475,133.66,133.65,7.4828]
[1744711284158,0.02714475,133.66,133.64,7.4831]
[1744711284859,0.02714475,133.66,133.65,7.4828]
[1744711285255,2.0552,133.72,133.64,7.14945757]
[1744711285459,2.1377,133.75,133.69,7.14945757]
[1744711285658,7.479,133.72,133.67,36.08945757]
[1744711285858,7.479,133.72,133.68,7.4808]
[1744711286361,28.94,133.74,133.69,0.04973442]
[1744711287462,7.4794,133.72,133.69,0.04973442]
[1744711287963,28.94,133.74,133.69,0.04973442]
[1744711288665,7.4792,133.72,133.69,0.04973442]
[1744711289665,7.4792,133.72,133.69,7.53023442]
[1744711289861,10.79214896,133.73,133.69,7.53023442]
[1744711290061,10.79214896,133.73,133.69,0.04973442]
[1744711290262,10.79214896,133.73,133.7,7.48]
[1744711290665,10.79214896,133.73,133.69,7.52983442]
[1744711292364,10.79214896,133.73,133.7,7.4799]
[1744711292565,3.31354896,133.73,133.7,7.4799]
[1744711292861,3.31354896,133.73,133.71,7.4794]
[1744711293163,3.31354896,133.73,133.69,0.04973442]
[1744711293366,3.31354896,133.73,133.7,7.14945757]
[1744711293761,3.31354896,133.73,133.71,7.4791]
[1744711293963,3.31354896,133.73,133.71,28.92]
[1744711294365,3.31354896,133.73,133.71,36.3992]
[1744711296568,3.31354896,133.73,133.72,14.62835757]
[1744711299568,3.31354896,133.73,133.69,0.04973442]
[1744711299973,7.4794,133.72,133.69,7.52993442]
[1744711300574,7.4794,133.72,133.7,7.4799]
[1744711300773,7.4794,133.72,133.69,0.04973442]
[1744711301072,7.4794,133.71,133.69,0.04973442]
[1744711301470,3.31354896,133.73,133.69,7.52993442]
[1744711301775,7.4791,133.72,133.69,7.52993442]
[1744711301966,3.31354896,133.73,133.69,0.04973442]
[1744711302171,3.31354896,133.73,133.7,7.4798]
[1744711302579,10.79214896,133.73,133.7,7.4798]
[1744711302873,3.31354896,133.73,133.71,7.4794]
[1744711303079,3.31354896,133.73,133.69,0.04973442]
[1744711304476,10.79214896,133.73,133.7,7.4795]
[1744711304872,3.31354896,133.73,133.72,7.4789]
[1744711305073,3.31354896,133.73,133.72,14.62835757]
[1744711305269,2.0558,133.79,133.72,36.06945757]
[1744711305573,7.4758,133.78,133.75,7.4767]
[1744711305774,7.4758,133.78,133.74,7.2039203]
[1744711305974,4.0845,133.8,133.74,7.2039203]
[1744711306371,28.92,133.82,133.74,7.2039203]
[1744711306578,7.4754,133.79,133.76,7.4761]
[1744711306775,28.92,133.82,133.74,7.14945757]
[1744711306978,28.92,133.82,133.76,0.05200676]
[1744711307775,7.4753,133.79,133.76,7.52830676]
[1744711308276,28.92,133.82,133.76,0.05200676]
[1744711308580,36.06945757,133.82,133.76,0.05200676]
[1744711308771,7.4761,133.77,133.76,0.05200676]
[1744711308977,1.9355,133.81,133.76,0.05200676]
[1744711309174,7.14945757,133.78,133.7,574.50945757]
[1744711309477,7.14945757,133.74,133.7,28.92]
[1744711309678,7.14945757,133.74,133.67,28.92]
[1744711309878,7.4793,133.72,133.67,28.92]
[1744711310078,7.14945757,133.76,133.67,28.92]
[1744711310277,7.4785,133.73,133.7,7.4797]
[1744711310477,7.53050676,133.73,133.7,7.53249109]
[1744711310677,0.05200676,133.73,133.7,0.05279109]
[1744711310873,0.05200676,133.73,133.71,7.4791]
[1744711311083,0.05200676,133.73,133.7,0.05279109]
[1744711311580,7.4791,133.72,133.7,0.05279109]
[1744711311782,0.05200676,133.73,133.7,0.05279109]
[1744711312077,7.4789,133.72,133.7,0.05279109]
[1744711312282,0.05200676,133.73,133.7,0.05279109]
[1744711312781,7.4794,133.71,133.7,0.05279109]
[1744711313277,7.4794,133.71,133.64,8.7172649]
[1744711313278,7.48,133.71,133.64,8.7172649]
[1744711313589,7.14945757,133.68,133.64,8.7172649]
[1744711313779,7.4846,133.62,133.6,28.92]
[1744711313980,7.14945757,133.66,133.6,28.92]
[1744711314180,7.14945757,133.66,133.57,61.10029471]
[1744711314384,7.4855,133.61,133.6,0.05632875]
[1744711323692,7.4874,133.57,133.55,538.38]
[1744711323897,7.4874,133.57,133.54,29.04]
[1744711324289,7.4884,133.55,133.54,29.04]
[1744711324495,11.41858703,133.61,133.5,31.0283]
[1744711324792,29.04,133.62,133.54,7.4889]
[1744711324992,0.04832513,133.57,133.54,7.53628647]
[1744711325697,7.53582513,133.57,133.54,7.53628647]
[1744711326098,0.04832513,133.57,133.54,0.04738647]
[1744711326296,7.4884,133.55,133.54,0.04738647]
[1744711328194,7.4904,133.52,133.5,29.04]
[1744711328399,11.41858703,133.55,133.47,29.04]
[1744711328694,29.04,133.54,133.47,29.04]
[1744711329002,11.41858703,133.51,133.43,366.4946]
[1744711329195,31.0444,133.54,133.41,579.29858703]
[1744711329196,29.04,133.5,133.41,579.29858703]
[1744711329396,0.05494597,133.48,133.46,0.05543627]
[1744711329594,29.06,133.51,133.46,7.54863627]
[1744711329799,0.04970886,133.48,133.46,7.54863627]
[1744711330301,0.04970886,133.48,133.46,0.05543627]
[1744711331398,7.4929,133.47,133.46,0.05543627]
[1744711331598,7.4929,133.47,133.41,29.04]
[1744711331599,40.47858703,133.47,133.4,4.0267]
[1744711331803,11.41858703,133.43,133.4,1.9421]
[1744711332102,11.41858703,133.43,133.39,1.9959]
[1744711332103,29.06,133.42,133.39,1.9959]
[1744711332492,29.06,133.42,133.33,11.41858703]
[1744711332698,29.10762797,133.42,133.39,0.05016395]
[1744711332994,29.10962881,133.42,133.39,0.04954948]
[1744711333192,7.54562881,133.42,133.39,0.04954948]
[1744711333405,0.04962881,133.42,133.39,0.04954948]
[1744711334509,29.06,133.53,133.4,29.06]
[1744711334695,11.41858703,133.55,133.42,11.41858703]
[1744711334899,29.06,133.56,133.45,11.41858703]
[1744711335100,11.41858703,133.55,133.46,29.08]
[1744711335307,11.41858703,133.55,133.44,29.08]
[1744711335706,0.05243023,133.51,133.48,0.055982]
[1744711337407,7.4916,133.5,133.48,0.055982]
[1744711337801,0.05243023,133.51,133.48,0.055982]
[1744711338505,0.05243023,133.51,133.5,7.4912]
[1744711340807,7.4876,133.57,133.53,7.4893]
[1744711341709,36.5668,133.58,133.52,29.06]
[1744711341911,0.04916586,133.56,133.54,0.04861995]
[1744711343515,0.04916586,133.56,133.54,7.53741995]
[1744711344019,568.36,133.65,133.54,11.46720698]
[1744711344218,568.36,133.65,133.57,11.41858703]
[1744711344519,7.4853,133.61,133.57,28.92]
[1744711345122,0.05533714,133.6,133.58,0.05686874]
[1744711345821,0.05533714,133.6,133.59,7.4861]
[1744711346223,28.92,133.68,133.58,11.47545577]
[1744711346522,28.92,133.68,133.6,11.41858703]
[1744711346712,28.92,133.68,133.62,11.41858703]
[1744711346916,28.92,133.71,133.63,28.92]
[1744711347321,0.05356902,133.68,133.66,0.04882194]
[1744711347821,0.05356902,133.68,133.66,7.53072194]
[1744711348519,0.05356902,133.68,133.67,7.4817]
[1744711348919,0.05356902,133.68,133.67,36.4017]
[1744711349122,7.4779,133.74,133.7,7.4796]
[1744711349323,40.33858703,133.77,133.67,40.33858703]
[1744711349523,28.92,133.77,133.67,40.33858703]
[1744711349719,7.4774,133.75,133.67,40.33858703]
[1744711349923,28.92,133.77,133.7,11.41858703]
[1744711350123,7.4765,133.77,133.73,7.478]
[1744711350328,28.9,133.8,133.72,0.05105346]
[1744711350827,28.9,133.8,133.75,7.477]
[1744711350828,7.4753,133.79,133.75,7.477]
[1744711351128,28.9,133.8,133.76,0.04970096]
[1744711351330,28.9,133.83,133.76,0.04970096]
[1744711351629,7.4749,133.8,133.76,7.52600096]
[1744711351831,28.9,133.83,133.76,0.04970096]
[1744711352731,7.4745,133.8,133.76,7.52620096]
[1744711353230,7.4745,133.8,133.76,0.04970096]
[1744711353731,7.4752,133.79,133.76,0.04970096]
[1744711354131,28.9,133.83,133.76,0.04970096]
[1744711354332,7.4742,133.81,133.77,7.476]
[1744711354832,7.4734,133.82,133.78,7.4754]
[1744711355029,11.41858703,133.86,133.75,28.9]
[1744711355231,11.41858703,133.86,133.79,0.05094206]
[1744711355831,7.4731,133.83,133.79,7.52584206]
[1744711356232,7.4731,133.83,133.79,36.40584206]
[1744711356527,40.31858703,133.87,133.79,28.93094206]
[1744711356930,40.31858703,133.87,133.79,36.40554206]
[1744711357132,40.31858703,133.87,133.79,28.93094206]
[1744711357333,11.41858703,133.83,133.79,0.05094206]
[1744711357634,40.29858703,133.83,133.79,0.05094206]
[1744711358534,28.88,133.83,133.79,0.05094206]
[1744711358740,11.41858703,133.85,133.79,0.05094206]
[1744711359125,11.41858703,133.83,133.79,0.05094206]
[1744711359336,11.41858703,133.81,133.72,359.0]
[1744711359536,28.88,133.8,133.7,40.29858703]
[1744711359731,7.4764,133.77,133.73,7.478]
[1744711359931,11.41858703,133.77,133.7,28.88]
[1744711360237,28.88,133.76,133.7,28.88]
[1744711360437,7.4787,133.73,133.72,0.0488435]
[1744711360838,7.478,133.74,133.72,0.0488435]
[1744711361033,0.05476034,133.75,133.72,0.0488435]
[1744711361435,7.4783,133.73,133.72,0.0488435]
[1744711362434,11.41858703,133.73,133.64,28.88]
[1744711362634,28.88,133.72,133.64,28.88]
[1744711362835,7.4814,133.68,133.64,28.88]
[1744711363338,11.41858703,133.96,133.68,45.0]
[1744711363543,30.16,133.95,133.81,11.41858703]
[1744711363734,11.41858703,133.93,133.81,30.16]
[1744711363935,11.41858703,133.9,133.81,30.16]
[1744711364237,7.4714,133.86,133.78,30.16]
[1744711364438,30.16,133.89,133.78,30.16]
[1744711364636,0.0518816,133.83,133.81,0.0490026]
[1744711364836,30.16,133.89,133.81,7.5225026]
[1744711365040,11.41858703,133.87,133.81,0.0490026]
[1744711365337,0.0523962,133.86,133.81,0.0490026]
[1744711365543,11.41858703,133.84,133.75,30.16]
[1744711365937,30.16,133.83,133.75,30.16]
[1744711366139,30.16,133.83,133.72,30.16]
[1744711366439,7.4736,133.82,133.72,30.16]
[1744711366642,11.41858703,133.84,133.72,30.16]
[1744711366643,0.05385323,133.79,133.76,0.05581563]
[1744711366840,30.16,133.86,133.77,30.16]
[1744711367240,30.16,133.86,133.77,48.6533692]
[1744711367547,7.4717,133.85,133.8,7.4741]
[1744711367744,7.4717,133.85,133.77,48.6533692]
[1744711368040,0.05394805,133.84,133.81,0.05432136]
[1744711368946,0.05394805,133.84,133.81,30.19432136]
[1744711369147,0.05394805,133.84,133.83,7.4727]
[1744711369540,30.14,133.89,133.82,1.9655]
[1744711369842,7.4703,133.88,133.84,7.4719]
[1744711370348,7.4694,133.89,133.85,7.4715]
[1744711370747,0.04336298,133.88,133.86,0.05735295]
[1744711370947,0.04336298,133.88,133.86,7.52805295]
[1744711371343,0.04336298,133.88,133.86,0.05735295]
[1744711371545,0.04336298,133.88,133.86,7.52835295]
[1744711371746,0.04336298,133.88,133.86,0.05735295]
[1744711373052,7.51356298,133.88,133.86,0.05735295]
[1744711373854,7.4705,133.87,133.86,0.05735295]
[1744711374547,7.4717,133.85,133.79,30.14]
[1744711374942,30.14,133.89,133.79,30.14]
[1744711375447,7.4705,133.87,133.79,30.14]
[1744711375651,0.05424589,133.85,133.83,0.0491061]
[1744711378354,0.05424589,133.85,133.83,30.1891061]
[1744711378758,0.05424589,133.85,133.83,32.1220061]
[1744711382651,2.0964,133.91,133.83,32.1220061]
[1744711382855,7.4704,133.88,133.83,32.1220061]
[1744711383152,2.0964,133.91,133.83,32.1220061]
[1744711383361,2.0964,133.91,133.83,30.1891061]
[1744711383657,7.51667004,133.88,133.83,30.1891061]